[Event "55th Biel Festival MTO 2022"]
[Site "Biel"]
[Date "2022.07.15"]
[Round "3.29"]
[White "Dushyant Sharma"]
[Black "Gomez Barrera Javiera Belen"]
[Result "1/2-1/2"]
[ECO "C78"]
[WhiteElo "2416"]
[BlackElo "2210"]
[Annotator "ChessBase"]
[PlyCount "69"]
[EventDate "2022.07.13"]
[EventType "swiss"]
[EventCountry "SUI"]
[SourceTitle "playchess.com"]
[Source "ChessBase"]
[SourceQuality "1"]
[TimeControl "40/5400+30:1800+30"]

1. e4 {[%emt 0:00:07]} e5 {[%emt 0:08:52]} 2. Nf3 {[%emt 0:01:56]} Nc6 {[%emt 0:00:14]} 3. Bb5 {[%emt 0:01:21]} a6 {[%emt 0:00:12]} 4. Ba4 {[%emt 0:00:07]} Nf6 {[%emt 0:00:08]} 5. O-O {[%emt 0:00:10]} Bc5 {[%emt 0:02:05]} 6. c3 {[%emt 0:10:34]} b5 {[%emt 0:00:23]} 7. Bc2 {[%emt 0:04:58]} d5 {[%emt 0:02:01]} 8. d4 {[%emt 0:14:31]} dxe4 {[%emt 0:00:44]} 9. dxc5 {[%emt 0:02:24]} exf3 {[%emt 0:25:31]} 10. Qxf3 {[%emt 0:02:25]} Bb7 {[%emt 0:20:26]} 11. Qg3 {[%emt 0:08:08]} Qe7 {[%emt 0:10:50]} 12. b4 {[%emt 0:12:32]} a5 {[%emt 0:03:57]} 13. Re1 {[%emt 0:03:54]} O-O {[%emt 0:06:36]} 14. Bg5 {[%emt 0:07:15]} Qe6 {[%emt 0:11:12]} 15. Na3 {[%emt 0:20:10]} axb4 {[%emt 0:02:18]} 16. Nxb5 {[%emt 0:00:10]} Rac8 {[%emt 0:01:14]} 17. Re3 {[%emt 0:02:53]} h6 {[%emt 0:01:25]} 18. Bb3 {[%emt 0:02:40]} Qf5 {[%emt 0:00:40]} 19. Bxh6 {[%emt 0:01:43]} Nh5 {[%emt 0:00:36]} 20. Qg5 {[%emt 0:00:11]} Qxg5 {[%emt 0:00:29]} 21. Bxg5 {[%emt 0:00:01]} bxc3 {[%emt 0:00:35]} 22. Nxc3 {[%emt 0:00:07]} Nd4 {[%emt 0:00:20]} 23. Rb1 {[%emt 0:03:07]} Nxb3 {[%emt 0:00:31]} 24. Rxb3 {[%emt 0:00:02]} Bc6 {[%emt 0:00:28]} 25. f3 {[%emt 0:01:00]} f6 {[%emt 0:00:17]} 26. Bh4 {[%emt 0:00:05]} Nf4 {[%emt 0:00:44]} 27. Bg3 {[%emt 0:00:14]} Ne6 {[%emt 0:00:26]} 28. Ne2 {[%emt 0:01:10]} Ra8 {[%emt 0:00:33]} 29. Ra3 {[%emt 0:00:23]} Bb5 {[%emt 0:00:40]} 30. Rxa8 {[%emt 0:00:32]} Rxa8 {[%emt 0:00:02]} 31. Nc3 {[%emt 0:00:26]} Bc4 {[%emt 0:00:58]} 32. a4 {[%emt 0:00:42]} Nxc5 {[%emt 0:00:22]} 33. f4 {[%emt 0:00:08]} exf4 {[%emt 0:00:37]} 34. Bxf4 {[%emt 0:00:05]} Nxa4 {[%emt 0:00:15]} 35. Bxc7 {[%emt 0:00:49]} 1/2-1/2

[Event "55th Biel Festival MTO 2022"]
[Site "Biel"]
[Date "2022.07.15"]
[Round "3.30"]
[White "Peyrer, Konstantin"]
[Black "Ludwig Peter"]
[Result "1-0"]
[ECO "E12"]
[WhiteElo "2406"]
[BlackElo "2163"]
[Annotator "ChessBase"]
[PlyCount "49"]
[EventDate "2022.07.13"]
[EventType "swiss"]
[EventCountry "SUI"]
[SourceTitle "playchess.com"]
[Source "ChessBase"]
[SourceQuality "1"]
[TimeControl "40/5400+30:1800+30"]

1. d4 {[%emt 0:00:09]} Nf6 {[%emt 0:00:08]} 2. c4 {[%emt 0:00:05]} e6 {[%emt 0:00:03]} 3. Nf3 {[%emt 0:00:04]} b6 {[%emt 0:00:04]} 4. a3 {[%emt 0:00:07]} Bb7 {[%emt 0:05:43]} 5. Nc3 {[%emt 0:00:50]} d5 {[%emt 0:01:58]} 6. Qc2 {[%emt 0:00:13]} Nbd7 {[%emt 0:02:07]} 7. cxd5 {[%emt 0:00:38]} exd5 {[%emt 0:05:07]} 8. Bf4 {[%emt 0:00:21]} c6 {[%emt 0:00:32]} 9. e3 {[%emt 0:07:05]} Be7 {[%emt 0:01:02]} 10. Bd3 {[%emt 0:00:27]} Nf8 {[%emt 0:02:06]} 11. h3 {[%emt 0:03:46]} Ne6 {[%emt 0:09:05]} 12. Be5 {[%emt 0:04:00]} h6 {[%emt 0:04:09]} 13. Bf5 {[%emt 0:08:38]} O-O {[%emt 0:04:06]} 14. g4 {[%emt 0:00:39]} Nd7 {[%emt 0:04:54]} 15. Bg3 {[%emt 0:04:13]} c5 {[%emt 0:02:58]} 16. Nb5 {[%emt 0:11:49]} Ng5 {[%emt 0:11:44]} 17. Nxg5 {[%emt 0:02:50]} hxg5 {[%emt 0:06:15]} 18. h4 {[%emt 0:06:02]} g6 {[%emt 0:04:28]} 19. Bxg6 {[%emt 0:01:32]} gxh4 {[%emt 0:00:37]} 20. Bc7 {[%emt 0:05:19]} Qc8 {[%emt 0:04:30]} 21. Bd6 {[%emt 0:05:56]} Qd8 {[%emt 0:05:10]} 22. Qf5 {[%emt 0:11:47]} fxg6 {[%emt 0:02:02]} 23. Qxg6+ {[%emt 0:00:07]} Kh8 {[%emt 0:00:04]} 24. Qh6+ {[%emt 0:02:50]} Kg8 {[%emt 0:00:05]} 25. g5 {[%emt 0:00:17]} 1-0

[Event "55th Biel Festival MTO 2022"]
[Site "Biel"]
[Date "2022.07.15"]
[Round "3.31"]
[White "Stijve, Theo"]
[Black "Kornitzky Tino"]
[Result "1-0"]
[ECO "D37"]
[WhiteElo "2394"]
[BlackElo "2141"]
[Annotator "ChessBase"]
[PlyCount "44"]
[EventDate "2022.07.13"]
[EventType "swiss"]
[EventCountry "SUI"]
[SourceTitle "playchess.com"]
[Source "ChessBase"]
[SourceQuality "1"]
[TimeControl "40/5400+30:1800+30"]

1. d4 {[%emt 0:00:06]} Nf6 {[%emt 0:00:53]} 2. c4 {[%emt 0:00:07]} e6 {[%emt 0:00:36]} 3. Nf3 {[%emt 0:00:08]} d5 {[%emt 0:00:03]} 4. Nc3 {[%emt 0:00:08]} Nbd7 {[%emt 0:00:19]} 5. Bf4 {[%emt 0:00:08]} dxc4 {[%emt 0:00:30]} 6. e3 {[%emt 0:00:08]} Nb6 {[%emt 0:00:09]} 7. Bxc4 {[%emt 0:00:08]} Nxc4 {[%emt 0:00:04]} 8. Qa4+ {[%emt 0:00:08]} c6 {[%emt 0:00:11]} 9. Qxc4 {[%emt 0:00:06]} Nd5 {[%emt 0:01:17]} 10. Bg3 {[%emt 0:00:08]} Qb6 {[%emt 0:02:01]} 11. Qe2 {[%emt 0:00:09]} Qa5 {[%emt 0:17:51]} 12. O-O {[%emt 0:00:19]} Nxc3 {[%emt 0:01:32]} 13. bxc3 {[%emt 0:00:09]} b6 {[%emt 0:00:22]} 14. Ne5 {[%emt 0:04:11]} Bb7 {[%emt 0:05:08]} 15. Qh5 {[%emt 0:08:07]} g6 {[%emt 0:04:09]} 16. Qf3 {[%emt 0:00:48]} f5 {[%emt 0:00:16]} 17. e4 {[%emt 0:10:43]} Bg7 {[%emt 0:05:56]} 18. Nc4 {[%emt 0:05:51]} Qa6 {[%emt 0:00:48]} 19. Nd6+ {[%emt 0:00:30]} Kd7 {[%emt 0:00:32]} 20. exf5 {[%emt 0:02:36]} gxf5 {[%emt 0:01:03]} 21. Nxf5 {[%emt 0:02:29]} Rhf8 {[%emt 0:00:40]} 22. Qf4 {[%emt 0:01:22]} Rxf5 {[%emt 0:03:15]} 1-0

[Event "55th Biel Festival MTO 2022"]
[Site "Biel"]
[Date "2022.07.15"]
[Round "3.32"]
[White "Aziz, Husain"]
[Black "Popiol Michal"]
[Result "1-0"]
[ECO "E97"]
[WhiteElo "2380"]
[BlackElo "2118"]
[Annotator "ChessBase"]
[PlyCount "101"]
[EventDate "2022.07.13"]
[EventType "swiss"]
[EventCountry "SUI"]
[SourceTitle "playchess.com"]
[Source "ChessBase"]
[SourceQuality "1"]
[TimeControl "40/5400+30:1800+30"]

1. d4 {[%emt 0:00:24]} Nf6 {[%emt 0:10:44]} 2. c4 {[%emt 0:00:34]} g6 {[%emt 0:00:09]} 3. Nc3 {[%emt 0:00:18]} Bg7 {[%emt 0:00:03]} 4. e4 {[%emt 0:00:19]} d6 {[%emt 0:00:04]} 5. Nf3 {[%emt 0:00:35]} O-O {[%emt 0:00:07]} 6. Be2 {[%emt 0:00:10]} e5 {[%emt 0:00:04]} 7. O-O {[%emt 0:00:11]} Nc6 {[%emt 0:00:06]} 8. d5 {[%emt 0:00:30]} Ne7 {[%emt 0:00:05]} 9. b4 {[%emt 0:00:15]} a5 {[%emt 0:00:08]} 10. bxa5 {[%emt 0:00:51]} Rxa5 {[%emt 0:00:05]} 11. a4 {[%emt 0:00:23]} b6 {[%emt 0:01:11]} 12. Bd2 {[%emt 0:05:15]} Ra8 {[%emt 0:06:27]} 13. Ra3 {[%emt 0:07:06]} h6 {[%emt 0:04:12]} 14. Qc1 {[%emt 0:20:13]} Kh7 {[%emt 0:01:05]} 15. a5 {[%emt 0:04:14]} bxa5 {[%emt 0:03:43]} 16. Qc2 {[%emt 0:04:55]} Ne8 {[%emt 0:10:08]} 17. Rfa1 {[%emt 0:00:47]} f5 {[%emt 0:03:00]} 18. Bd3 {[%emt 0:02:51]} c6 {[%emt 0:09:16]} 19. dxc6 {[%emt 0:11:17]} Nxc6 {[%emt 0:00:31]} 20. Nd5 {[%emt 0:00:10]} Be6 {[%emt 0:15:21]} 21. h4 {[%emt 0:01:05]} f4 {[%emt 0:03:50]} 22. Qa4 {[%emt 0:08:19]} Bd7 {[%emt 0:01:52]} 23. Qd1 {[%emt 0:00:03]} g5 {[%emt 0:09:15]} 24. hxg5 {[%emt 0:05:10]} hxg5 {[%emt 0:00:05]} 25. Nh2 {[%emt 0:01:48]} Nf6 {[%emt 0:07:13]} 26. Be2 {[%emt 0:03:06]} Kg8 {[%emt 0:02:35]} 27. Nxf6+ {[%emt 0:01:28]} Rxf6 {[%emt 0:01:20]} 28. Bg4 {[%emt 0:00:10]} Be8 {[%emt 0:00:39]} 29. Bf5 {[%emt 0:04:30]} Nd4 {[%emt 0:07:26]} 30. Bxa5 {[%emt 0:00:38]} Qe7 {[%emt 0:00:16]} 31. Ng4 {[%emt 0:02:03]} Rf8 {[%emt 0:00:26]} 32. Bb4 {[%emt 0:01:36]} Rxa3 {[%emt 0:00:52]} 33. Rxa3 {[%emt 0:00:03]} Bf7 {[%emt 0:01:00]} 34. Rh3 {[%emt 0:03:00]} Rb8 {[%emt 0:01:32]} 35. Bc3 {[%emt 0:01:59]} Bxc4 {[%emt 0:01:10]} 36. Bxd4 {[%emt 0:03:01]} exd4 {[%emt 0:00:01]} 37. Rh7 {[%emt 0:01:44]} d3 {[%emt 0:01:32]} 38. Bg6 {[%emt 0:01:39]} Qe6 {[%emt 0:01:03]} 39. Bf5 {[%emt 0:02:19]} Qe7 {[%emt 0:00:04]} 40. Bg6 {[%emt 0:00:54]} Qe6 {[%emt 0:01:00]} 41. Rxg7+ {[%emt 0:17:52]} Kxg7 {[%emt 0:00:06]} 42. Bf5 {[%emt 0:00:05]} Qe7 {[%emt 0:09:14]} 43. Qa1+ {[%emt 0:00:01]} Kf8 {[%emt 0:00:12]} 44. Qh8+ {[%emt 0:02:52]} Bg8 {[%emt 0:00:05]} 45. Qh6+ {[%emt 0:03:46]} Ke8 {[%emt 0:00:06]} 46. Nf6+ {[%emt 0:00:37]} Kd8 {[%emt 0:00:10]} 47. Nxg8 {[%emt 0:00:20]} d2 {[%emt 0:02:18]} 48. Nxe7 {[%emt 0:03:27]} d1=Q+ {[%emt 0:00:10]} 49. Kh2 {[%emt 0:00:04]} Kxe7 {[%emt 0:04:10]} 50. Qg7+ {[%emt 0:00:13]} Ke8 {[%emt 0:00:18]} 51. Qg8+ {[%emt 0:00:09]} 1-0

[Event "55th Biel Festival MTO 2022"]
[Site "Biel"]
[Date "2022.07.15"]
[Round "3.33"]
[White "Seul, Georg"]
[Black "Giacomini Hector"]
[Result "1-0"]
[ECO "B12"]
[WhiteElo "2367"]
[BlackElo "2091"]
[Annotator "ChessBase"]
[PlyCount "85"]
[EventDate "2022.07.13"]
[EventType "swiss"]
[EventCountry "SUI"]
[SourceTitle "playchess.com"]
[Source "ChessBase"]
[SourceQuality "1"]
[TimeControl "40/5400+30:1800+30"]

1. e4 {[%emt 0:00:20]} c6 {[%emt 0:00:04]} 2. d4 {[%emt 0:00:07]} d5 {[%emt 0:00:05]} 3. e5 {[%emt 0:00:09]} c5 {[%emt 0:00:09]} 4. dxc5 {[%emt 0:00:15]} e6 {[%emt 0:00:05]} 5. a3 {[%emt 0:00:17]} Nc6 {[%emt 0:00:11]} 6. Nf3 {[%emt 0:00:18]} Bxc5 {[%emt 0:00:08]} 7. b4 {[%emt 0:00:37]} Bb6 {[%emt 0:00:07]} 8. Bb2 {[%emt 0:00:10]} Nge7 {[%emt 0:00:13]} 9. Bd3 {[%emt 0:00:29]} Ng6 {[%emt 0:00:11]} 10. b5 {[%emt 0:00:41]} Na5 {[%emt 0:01:50]} 11. h4 {[%emt 0:00:08]} Nc4 {[%emt 0:32:28]} 12. Bxc4 {[%emt 0:01:49]} dxc4 {[%emt 0:02:08]} 13. Qxd8+ {[%emt 0:04:05]} Kxd8 {[%emt 0:01:08]} 14. h5 {[%emt 0:24:40]} Nf4 {[%emt 0:02:15]} 15. h6 {[%emt 0:00:13]} gxh6 {[%emt 0:03:59]} 16. Nc3 {[%emt 0:12:47]} Nxg2+ {[%emt 0:13:25]} 17. Kf1 {[%emt 0:00:14]} Nf4 {[%emt 0:00:13]} 18. Rd1+ {[%emt 0:04:06]} Nd5 {[%emt 0:07:43]} 19. Rxh6 {[%emt 0:27:04]} Ke8 {[%emt 0:04:30]} 20. Ne4 {[%emt 0:08:14]} Bd7 {[%emt 0:05:46]} 21. a4 {[%emt 0:00:15]} a6 {[%emt 0:03:30]} 22. Rxd5 {[%emt 0:00:47]} exd5 {[%emt 0:00:12]} 23. Nf6+ {[%emt 0:00:09]} Kd8 {[%emt 0:02:59]} 24. Nxd7 {[%emt 0:00:08]} Kxd7 {[%emt 0:00:38]} 25. Rxb6 {[%emt 0:00:08]} Kc7 {[%emt 0:02:13]} 26. Rf6 {[%emt 0:01:28]} axb5 {[%emt 0:01:20]} 27. Rxf7+ {[%emt 0:00:28]} Kb6 {[%emt 0:02:39]} 28. axb5 {[%emt 0:03:17]} Ra2 {[%emt 0:01:36]} 29. Bd4+ {[%emt 0:00:11]} Kxb5 {[%emt 0:00:40]} 30. Rxb7+ {[%emt 0:01:21]} Kc6 {[%emt 0:00:24]} 31. Rb6+ {[%emt 0:00:17]} Kc7 {[%emt 0:00:09]} 32. c3 {[%emt 0:00:44]} h5 {[%emt 0:01:17]} 33. Kg2 {[%emt 0:03:20]} Rg8+ {[%emt 0:01:12]} 34. Kh2 {[%emt 0:00:29]} Raa8 {[%emt 0:06:57]} 35. Rf6 {[%emt 0:00:39]} Raf8 {[%emt 0:00:40]} 36. Bc5 {[%emt 0:01:01]} Re8 {[%emt 0:01:18]} 37. e6 {[%emt 0:02:12]} Rg4 {[%emt 0:02:02]} 38. Nd4 {[%emt 0:02:21]} Reg8 {[%emt 0:00:34]} 39. Rf7+ {[%emt 0:00:17]} Kc8 {[%emt 0:01:20]} 40. Nf3 {[%emt 0:01:43]} Re4 {[%emt 0:00:55]} 41. e7 {[%emt 0:32:12]} Re8 {[%emt 0:04:09]} 42. Rf5 {[%emt 0:00:00]} d4 {[%emt 0:04:19]} 43. Nxd4 {[%emt 0:00:00]} 1-0

[Event "55th Biel Festival MTO 2022"]
[Site "Biel"]
[Date "2022.07.15"]
[Round "3.34"]
[White "Roe Simon J"]
[Black "Herrera Reyes, Jose Antonio"]
[Result "0-1"]
[ECO "A30"]
[WhiteElo "2170"]
[BlackElo "2345"]
[Annotator "ChessBase"]
[PlyCount "88"]
[EventDate "2022.07.13"]
[EventType "swiss"]
[EventCountry "SUI"]
[SourceTitle "playchess.com"]
[Source "ChessBase"]
[SourceQuality "1"]
[TimeControl "40/5400+30:1800+30"]

1. c4 {[%emt 0:00:05]} c5 {[%emt 0:00:15]} 2. Nf3 {[%emt 0:00:15]} b6 {[%emt 0:00:11]} 3. g3 {[%emt 0:00:56]} Bb7 {[%emt 0:00:08]} 4. Bg2 {[%emt 0:00:06]} e6 {[%emt 0:00:28]} 5. O-O {[%emt 0:00:44]} Nf6 {[%emt 0:00:20]} 6. Nc3 {[%emt 0:00:36]} a6 {[%emt 0:01:34]} 7. Re1 {[%emt 0:04:31]} Qc7 {[%emt 0:00:41]} 8. e4 {[%emt 0:00:36]} d6 {[%emt 0:00:07]} 9. d4 {[%emt 0:01:23]} cxd4 {[%emt 0:00:07]} 10. Nxd4 {[%emt 0:00:05]} Be7 {[%emt 0:01:44]} 11. Be3 {[%emt 0:00:20]} Nbd7 {[%emt 0:00:27]} 12. Rc1 {[%emt 0:03:07]} Rc8 {[%emt 0:02:06]} 13. f4 {[%emt 0:04:41]} Qb8 {[%emt 0:01:46]} 14. Nd5 {[%emt 0:09:49]} Bd8 {[%emt 0:08:04]} 15. e5 {[%emt 0:05:09]} exd5 {[%emt 0:08:01]} 16. exf6 {[%emt 0:09:45]} Bxf6 {[%emt 0:02:07]} 17. Bf2+ {[%emt 0:01:34]} Kf8 {[%emt 0:00:12]} 18. cxd5 {[%emt 0:11:36]} Rxc1 {[%emt 0:06:41]} 19. Qxc1 {[%emt 0:00:07]} Nc5 {[%emt 0:00:12]} 20. Qc2 {[%emt 0:10:58]} a5 {[%emt 0:03:56]} 21. Nc6 {[%emt 0:02:47]} Qc8 {[%emt 0:01:17]} 22. Qd2 {[%emt 0:06:43]} h5 {[%emt 0:02:54]} 23. h4 {[%emt 0:09:05]} Qf5 {[%emt 0:05:35]} 24. b4 {[%emt 0:06:09]} Nd3 {[%emt 0:05:05]} 25. Re4 {[%emt 0:05:03]} Nxf2 {[%emt 0:08:50]} 26. Qxf2 {[%emt 0:00:00]} axb4 {[%emt 0:01:37]} 27. Qxb6 {[%emt 0:00:00]} Bc8 {[%emt 0:00:13]} 28. Qxb4 {[%emt 0:00:41]} Qd7 {[%emt 0:01:15]} 29. Ne5 {[%emt 0:01:48]} Qd8 {[%emt 0:02:20]} 30. Nc4 {[%emt 0:01:08]} Bf5 {[%emt 0:01:32]} 31. Re1 {[%emt 0:01:08]} Bd4+ {[%emt 0:00:10]} 32. Kh2 {[%emt 0:00:06]} Bc5 {[%emt 0:00:03]} 33. Qb5 {[%emt 0:01:02]} Rh6 {[%emt 0:01:10]} 34. Ne3 {[%emt 0:02:10]} Bd7 {[%emt 0:00:07]} 35. Qd3 {[%emt 0:00:16]} Rg6 {[%emt 0:00:48]} 36. Be4 {[%emt 0:00:20]} Qa5 {[%emt 0:00:22]} 37. Nc2 {[%emt 0:01:26]} Rf6 {[%emt 0:07:08]} 38. Rb1 {[%emt 0:00:02]} g6 {[%emt 0:02:53]} 39. Rb8+ {[%emt 0:01:20]} Kg7 {[%emt 0:00:30]} 40. Rb7 {[%emt 0:02:06]} Bc8 {[%emt 0:01:42]} 41. Rb5 {[%emt 0:14:25]} Qa4 {[%emt 0:04:37]} 42. Rb2 {[%emt 0:02:20]} Qd7 {[%emt 0:08:40]} 43. Qf1 {[%emt 0:02:16]} Qe7 {[%emt 0:05:27]} 44. Qd3 {[%emt 0:01:44]} Rxf4 {[%emt 0:00:33]} 0-1

[Event "55th Biel Festival MTO 2022"]
[Site "Biel"]
[Date "2022.07.15"]
[Round "3.35"]
[White "Foerster-Yialamas Lucas"]
[Black "Karthik Rajaa"]
[Result "1/2-1/2"]
[ECO "B12"]
[WhiteElo "2147"]
[BlackElo "2331"]
[Annotator "ChessBase"]
[PlyCount "57"]
[EventDate "2022.07.13"]
[EventType "swiss"]
[EventCountry "SUI"]
[SourceTitle "playchess.com"]
[Source "ChessBase"]
[SourceQuality "1"]
[TimeControl "40/5400+30:1800+30"]

1. e4 {[%emt 0:00:05]} c6 {[%emt 0:01:06]} 2. d4 {[%emt 0:00:04]} d5 {[%emt 0:00:08]} 3. e5 {[%emt 0:00:05]} Bf5 {[%emt 0:00:08]} 4. h4 {[%emt 0:00:02]} h5 {[%emt 0:00:07]} 5. Bd3 {[%emt 0:00:05]} Bxd3 {[%emt 0:00:05]} 6. Qxd3 {[%emt 0:00:06]} Qa5+ {[%emt 0:00:15]} 7. b4 {[%emt 0:00:07]} Qa6 {[%emt 0:01:04]} 8. Qb3 {[%emt 0:00:17]} e6 {[%emt 0:00:08]} 9. Nf3 {[%emt 0:00:08]} Ne7 {[%emt 0:01:34]} 10. Bd2 {[%emt 0:00:17]} Nf5 {[%emt 0:05:43]} 11. Nc3 {[%emt 0:00:42]} Nd7 {[%emt 0:14:38]} 12. a4 {[%emt 0:03:03]} Be7 {[%emt 0:09:42]} 13. Ne2 {[%emt 0:06:09]} Qc4 {[%emt 0:14:06]} 14. Qxc4 {[%emt 0:01:14]} dxc4 {[%emt 0:00:02]} 15. a5 {[%emt 0:01:14]} O-O {[%emt 0:02:42]} 16. Nf4 {[%emt 0:05:46]} g6 {[%emt 0:04:02]} 17. g3 {[%emt 0:02:56]} b5 {[%emt 0:15:53]} 18. c3 {[%emt 0:00:54]} Nb8 {[%emt 0:01:54]} 19. Ng1 {[%emt 0:03:21]} Na6 {[%emt 0:02:16]} 20. Nge2 {[%emt 0:00:17]} Nc7 {[%emt 0:00:54]} 21. f3 {[%emt 0:01:32]} Kg7 {[%emt 0:00:43]} 22. O-O-O {[%emt 0:02:51]} Rh8 {[%emt 0:04:38]} 23. Rdg1 {[%emt 0:01:33]} Rag8 {[%emt 0:01:19]} 24. Be1 {[%emt 0:03:01]} Kf8 {[%emt 0:02:10]} 25. Bf2 {[%emt 0:01:07]} Nd5 {[%emt 0:01:50]} 26. Kc2 {[%emt 0:03:57]} Ke8 {[%emt 0:04:00]} 27. Nxd5 {[%emt 0:18:23]} cxd5 {[%emt 0:00:14]} 28. Nf4 {[%emt 0:00:25]} Rh7 {[%emt 0:01:52]} 29. Rh2 {[%emt 0:04:14]} 1/2-1/2

[Event "55th Biel Festival MTO 2022"]
[Site "Biel"]
[Date "2022.07.15"]
[Round "3.36"]
[White "Monteverde, Jonathan"]
[Black "Sahithi Varshini M"]
[Result "0-1"]
[ECO "E39"]
[WhiteElo "2091"]
[BlackElo "2312"]
[Annotator "ChessBase"]
[PlyCount "138"]
[EventDate "2022.07.13"]
[EventType "swiss"]
[EventCountry "SUI"]
[SourceTitle "playchess.com"]
[Source "ChessBase"]
[SourceQuality "1"]
[TimeControl "40/5400+30:1800+30"]

1. d4 {[%emt 0:00:12]} Nf6 {[%emt 0:00:07]} 2. c4 {[%emt 0:00:29]} e6 {[%emt 0:00:06]} 3. Nc3 {[%emt 0:00:05]} Bb4 {[%emt 0:00:08]} 4. Qc2 {[%emt 0:00:05]} c5 {[%emt 0:00:13]} 5. dxc5 {[%emt 0:00:07]} O-O {[%emt 0:00:10]} 6. Nf3 {[%emt 0:00:07]} Na6 {[%emt 0:01:13]} 7. g3 {[%emt 0:00:19]} Nxc5 {[%emt 0:00:46]} 8. Bg2 {[%emt 0:00:16]} b6 {[%emt 0:01:27]} 9. O-O {[%emt 0:01:37]} Bb7 {[%emt 0:10:46]} 10. Nb5 {[%emt 0:02:50]} Be4 {[%emt 0:01:00]} 11. Qd1 {[%emt 0:00:20]} Nb7 {[%emt 0:02:22]} 12. Bf4 {[%emt 0:03:10]} Be7 {[%emt 0:22:32]} 13. Nd6 {[%emt 0:01:42]} Nxd6 {[%emt 0:07:26]} 14. Bxd6 {[%emt 0:00:08]} Bxd6 {[%emt 0:02:28]} 15. Qxd6 {[%emt 0:00:08]} Bxf3 {[%emt 0:00:07]} 16. Bxf3 {[%emt 0:01:28]} Rc8 {[%emt 0:02:36]} 17. Rac1 {[%emt 0:05:57]} Qc7 {[%emt 0:00:15]} 18. Rfd1 {[%emt 0:08:24]} Qxd6 {[%emt 0:00:14]} 19. Rxd6 {[%emt 0:00:06]} Rc7 {[%emt 0:00:08]} 20. b3 {[%emt 0:11:13]} Rfc8 {[%emt 0:03:58]} 21. Rcd1 {[%emt 0:03:37]} Kf8 {[%emt 0:00:12]} 22. Kg2 {[%emt 0:14:37]} Ke7 {[%emt 0:00:21]} 23. R6d2 {[%emt 0:00:15]} g5 {[%emt 0:07:39]} 24. e3 {[%emt 0:03:14]} Rc5 {[%emt 0:05:13]} 25. h3 {[%emt 0:07:13]} b5 {[%emt 0:11:50]} 26. cxb5 {[%emt 0:04:59]} Rxb5 {[%emt 0:00:06]} 27. Rd4 {[%emt 0:03:50]} Rc7 {[%emt 0:01:12]} 28. R1d2 {[%emt 0:01:26]} d5 {[%emt 0:05:42]} 29. Ra4 {[%emt 0:04:03]} e5 {[%emt 0:05:15]} 30. Ra6 {[%emt 0:01:47]} e4 {[%emt 0:01:19]} 31. Be2 {[%emt 0:00:28]} Rbc5 {[%emt 0:00:05]} 32. b4 {[%emt 0:01:35]} Rc1 {[%emt 0:00:52]} 33. f4 {[%emt 0:08:37]} gxf4 {[%emt 0:00:35]} 34. gxf4 {[%emt 0:00:10]} R1c6 {[%emt 0:02:44]} 35. Ra5 {[%emt 0:01:29]} Rb6 {[%emt 0:00:49]} 36. b5 {[%emt 0:00:44]} Rd7 {[%emt 0:00:35]} 37. Ra3 {[%emt 0:01:07]} Rbd6 {[%emt 0:00:41]} 38. Bg4 {[%emt 0:01:13]} Rb7 {[%emt 0:00:27]} 39. Be2 {[%emt 0:00:39]} Ne8 {[%emt 0:00:35]} 40. Rc3 {[%emt 0:07:26]} f5 {[%emt 0:02:43]} 41. Rc6 {[%emt 0:08:18]} Rc7 {[%emt 0:09:30]} 42. Rxd6 {[%emt 0:05:31]} Kxd6 {[%emt 0:00:06]} 43. a4 {[%emt 0:02:57]} Rc3 {[%emt 0:06:40]} 44. Kf2 {[%emt 0:00:38]} Ra3 {[%emt 0:01:32]} 45. Bd1 {[%emt 0:03:22]} Rd3 {[%emt 0:03:13]} 46. Ke2 {[%emt 0:02:00]} Rxd2+ {[%emt 0:00:14]} 47. Kxd2 {[%emt 0:00:04]} Kc5 {[%emt 0:00:32]} 48. Kc3 {[%emt 0:03:26]} Nd6 {[%emt 0:00:21]} 49. Kd2 {[%emt 0:06:48]} Nc4+ {[%emt 0:00:07]} 50. Ke2 {[%emt 0:00:05]} Nb2 {[%emt 0:00:22]} 51. Bb3 {[%emt 0:00:26]} Nc4 {[%emt 0:00:06]} 52. Kf2 {[%emt 0:01:11]} Kb4 {[%emt 0:00:10]} 53. Bd1 {[%emt 0:00:23]} Nb2 {[%emt 0:00:13]} 54. Bh5 {[%emt 0:00:30]} Nxa4 {[%emt 0:00:26]} 55. Bf7 {[%emt 0:02:35]} Nc5 {[%emt 0:03:23]} 56. Bxd5 {[%emt 0:01:45]} Kxb5 {[%emt 0:00:04]} 57. Bg8 {[%emt 0:00:31]} Kb4 {[%emt 0:02:03]} 58. Bxh7 {[%emt 0:00:54]} a5 {[%emt 0:00:06]} 59. Ke2 {[%emt 0:00:14]} Kc3 {[%emt 0:00:52]} 60. Bg8 {[%emt 0:00:50]} a4 {[%emt 0:00:04]} 61. h4 {[%emt 0:00:11]} a3 {[%emt 0:00:24]} 62. h5 {[%emt 0:00:29]} Nd7 {[%emt 0:00:09]} 63. h6 {[%emt 0:00:57]} Nf6 {[%emt 0:00:03]} 64. Kf2 {[%emt 0:00:30]} Kd2 {[%emt 0:00:08]} 65. Kg3 {[%emt 0:00:39]} Kxe3 {[%emt 0:00:05]} 66. Ba2 {[%emt 0:00:32]} Nh7 {[%emt 0:00:56]} 67. Bb3 {[%emt 0:00:28]} Nf8 {[%emt 0:00:12]} 68. Be6 {[%emt 0:00:28]} Kd2 {[%emt 0:00:21]} 69. Kg2 {[%emt 0:00:34]} e3 {[%emt 0:00:08]} 0-1